fUSD/lending_fUSD_20260405
["ID","MTS","AMOUNT","RATE_DAILY","PERIOD"]
[419794724,1775383842736,-587.0,9.947e-05,2]
[419794725,1775383842746,-1000.0,9.999e-05,2]
[419794726,1775383842757,-186.62,0.0001,2]
[419794727,1775383842767,-495.60749599,0.0001,2]
[419794728,1775383842777,-1399.66577196,0.0001,2]
[419794729,1775383842787,-179.80643111,0.0001,2]
[419794730,1775383842796,-200.0,0.0001,2]
[419794731,1775383842806,-1486.16375652,0.0001,2]
[419794732,1775383842815,-500.0,0.0001,2]
[419794733,1775383842825,-500.0,0.0001,2]
[419794734,1775383842834,-500.0,0.0001,2]
[419794735,1775383842844,-500.0,0.0001,2]
[419794736,1775383842855,-500.0,0.0001,2]
[419794737,1775383842864,-500.0,0.0001,2]
[419794738,1775383842873,-500.0,0.0001,2]
[419794739,1775383842883,-500.0,0.0001,2]
[419794740,1775383842893,-500.0,0.0001,2]
[419794741,1775383842902,-500.0,0.0001,2]
[419794742,1775383842911,-500.0,0.0001,2]
[419794743,1775383842921,-200.0,0.0001,2]
[419794744,1775383842931,-151.0,0.0001,2]
[419794745,1775383842940,-500.0,0.0001,2]
[419794746,1775383842950,-151.0,0.0001,2]
[419794747,1775383842960,-151.0,0.0001,2]
[419794748,1775383842970,-500.0,0.0001,2]
[419794749,1775383842979,-151.0,0.0001,2]
[419794750,1775383842989,-500.0,0.0001,2]
[419794751,1775383843000,-151.0,0.0001,2]
[419794752,1775383843009,-500.0,0.0001,2]
[419794753,1775383843019,-151.0,0.0001,2]
[419794754,1775383843028,-500.0,0.0001,2]
[419794755,1775383843038,-151.0,0.0001,2]
[419794756,1775383843048,-500.0,0.0001,2]
[419794757,1775383843057,-151.0,0.0001,2]
[419794758,1775383843067,-500.0,0.0001,2]
[419794759,1775383843077,-151.0,0.0001,2]
[419794760,1775383843087,-500.0,0.0001,2]
[419794761,1775383843097,-151.0,0.0001,2]
[419794762,1775383843107,-500.0,0.0001,2]
[419794763,1775383843116,-151.0,0.0001,2]
[419794764,1775383843127,-500.0,0.0001,2]
[419794765,1775383843137,-151.0,0.0001,2]
[419794766,1775383843147,-500.0,0.0001,2]
[419794767,1775383843157,-151.0,0.0001,2]
[419794768,1775383843167,-151.0,0.0001,2]
[419794770,1775383843177,-151.0,0.0001,2]
[419794771,1775383843187,-151.0,0.0001,2]
[419794772,1775383843197,-151.0,0.0001,2]
[419794773,1775383843207,-151.0,0.0001,2]
[419794774,1775383843216,-151.0,0.0001,2]
[419794775,1775383843226,-151.0,0.0001,2]
[419794776,1775383843236,-151.0,0.0001,2]
[419794777,1775383843246,-1386.78395259,0.0001,2]
[419794778,1775383843256,-151.0,0.0001,2]
[419794779,1775383843267,-151.0,0.0001,2]
[419794780,1775383843276,-151.0,0.0001,2]
[419794781,1775383843286,-151.0,0.0001,2]
[419794782,1775383843296,-151.0,0.0001,2]
[419794783,1775383843305,-151.0,0.0001,2]
[419794784,1775383843315,-151.0,0.0001,2]
[419794785,1775383843325,-151.0,0.0001,2]
[419794786,1775383843335,-151.0,0.0001,2]
[419794787,1775383843345,-151.0,0.0001,2]
[419794788,1775383843356,-151.0,0.0001,2]
[419794789,1775383843366,-151.0,0.0001,2]
[419794790,1775383843376,-6483.6790458,0.0001,2]
[419794791,1775383843385,-348.59863987,0.0001,2]
[419794792,1775383843395,-1296.65421016,0.0001,2]
[419794793,1775383843404,-1296.65421016,0.0001,2]
[419794794,1775383843414,-571.42,0.00010028,2]
[419794795,1775383843423,-500.0,0.00010054,2]
[419794796,1775383843433,-200.0,0.000101,2]
[419794797,1775383843443,-200.0,0.00010201,2]
[419794798,1775383843453,-503.58783273,0.00010206,2]
[419794799,1775383843463,-2000.0,0.00010206,2]
[419794800,1775383843473,-2000.0,0.00010206,2]
[419794801,1775383843483,-2000.0,0.00010206,2]
[419794802,1775383843492,-2000.0,0.00010242,2]
[419794803,1775383843502,-200.0,0.00010303,2]
[419794804,1775383843511,-500.0,0.00010328,2]
[419794805,1775383843521,-470.08,0.00010383,2]
[419794806,1775383843530,-2351.0,0.00010391,2]
[419794807,1775383843540,-433.0,0.00010401,2]
[419794808,1775383843549,-200.0,0.00010406,2]
[419794809,1775383843559,-200.0,0.00010548,2]
[419794810,1775383843569,-280.17407569,0.00010548,2]
[419794811,1775383843578,-1438.09495884,0.00010548,2]
[419794812,1775383843588,-500.0,0.00010602,2]
[419794813,1775383843598,-1296.65421016,0.0001069,2]
[419794814,1775383843607,-2894122.10889107,0.000107,2]
[419794815,1775383843616,-2500.0,0.00010754,2]
[419794816,1775383843628,-341.5818023,0.00010754,2]
[419794817,1775383843637,-2500.0,0.00010754,2]
[419794818,1775383843647,-250.0,0.00010863,2]
[419794819,1775383843657,-500.0,0.00010876,2]
[419794820,1775383843666,-163.99,0.00010877,2]
[419794821,1775383843675,-9909.78873267,0.000109,2]
[419794822,1775383843684,-9909.78873263,0.000109,2]
[419794823,1775383843694,-9909.78873263,0.000109,2]
[419794824,1775383843704,-470.08,0.00010902,2]
[419794825,1775383843714,-823.0,0.00010942,2]
[419794826,1775383843723,-500.0,0.00010959,2]
[419794827,1775383843732,-1561.16,0.00010959,2]
[419794828,1775383843742,-2604.59251375,0.00011,2]
[419794829,1775383843751,-3880.3,0.00011073,2]
[419794830,1775383843761,-200.0,0.00011096,2]
[419794831,1775383843771,-1491.30447232,0.00011096,2]
[419794832,1775383843781,-59898.1711905,0.00011099,2]
[419794833,1775383843791,-59898.17119049,0.00011099,2]
[419794834,1775383843801,-59898.17119049,0.00011099,2]
[419794835,1775383843810,-59898.17119049,0.00011099,2]
[419794836,1775383843820,-59898.17119049,0.00011099,2]
[419794837,1775383843830,-67822.7835436,0.00011099,2]
[419794838,1775383843839,-67822.78354354,0.00011099,2]
[419794839,1775383843849,-67822.78354354,0.00011099,2]
[419794840,1775383843859,-67822.78354354,0.00011099,2]
[419794841,1775383843868,-67822.78354354,0.00011099,2]
[419794842,1775383843878,-500.0,0.0001115,2]
[419794843,1775383843888,-10614.480628,0.00011288,2]
[419794844,1775383843898,-2503.97477446,0.00011302,2]
[419794845,1775383843908,-3000.0,0.00011302,2]
[419794846,1775383843918,-470.08,0.00011421,2]
[419794847,1775383843929,-3292.0,0.0001143,2]
[419794848,1775383843938,-9813.337923,0.00011431,2]
[419794849,1775383843948,-1900.000747,0.00011431,2]
[419794850,1775383843958,-736.0,0.00011441,2]
[419794851,1775383843968,-4890.14,0.00011507,2]
[419794852,1775383843977,-1428.38747117,0.00011519,2]
[419794853,1775383843987,-500.0,0.00011519,2]
[419794854,1775383843998,-500.0,0.00011519,2]
[419794855,1775383844008,-500.0,0.00011519,2]
[419794856,1775383844019,-500.0,0.00011519,2]
[419794857,1775383844028,-500.0,0.00011519,2]
[419794858,1775383844038,-500.0,0.00011519,2]
[419794859,1775383844048,-500.0,0.00011519,2]
[419794860,1775383844058,-500.0,0.00011519,2]
[419794861,1775383844067,-500.0,0.00011519,2]
[419794862,1775383844077,-3000.0,0.00011519,2]
[419794863,1775383844086,-500.0,0.00011519,2]
[419794864,1775383844096,-3000.0,0.00011519,2]
[419794865,1775383844106,-500.0,0.00011519,2]
[419794866,1775383844115,-3000.0,0.00011519,2]
[419794867,1775383844125,-500.0,0.00011519,2]
[419794868,1775383844134,-3000.0,0.00011519,2]
[419794869,1775383844144,-151.0,0.00011519,2]
[419794870,1775383844153,-3000.0,0.00011519,2]
[419794871,1775383844163,-151.0,0.00011519,2]
[419794872,1775383844172,-209.40437684,0.00011519,2]
[419794873,1775383844181,-3000.0,0.00011519,2]
[419794874,1775383844191,-151.0,0.00011519,2]
[419794875,1775383844200,-3000.0,0.00011519,2]
[419794876,1775383844211,-154.76515316,0.00011519,2]
[419794877,1775383844221,-3000.0,0.00011519,2]
[419794878,1775383844231,-3000.0,0.00011519,2]
[419794879,1775383844240,-3000.0,0.00011519,2]
[419794880,1775383844250,-1597.01588604,0.00011519,2]
[419794881,1775383844259,-1000.0,0.00011519,2]
[419794882,1775383844270,-1000.0,0.00011519,2]
[419794883,1775383844280,-1000.0,0.00011519,2]
[419794884,1775383844290,-209.40437684,0.00011519,2]
[419794885,1775383844300,-1000.0,0.00011519,2]
[419794886,1775383844310,-1000.0,0.00011519,2]
[419794887,1775383844320,-1000.0,0.00011519,2]
[419794888,1775383844330,-1000.0,0.00011519,2]
[419794889,1775383844340,-1000.0,0.00011519,2]
[419794890,1775383844351,-424.86822135,0.00011519,2]
[419794891,1775383844360,-174.61919141,0.00011519,2]
[419794892,1775383844370,-693.3919763,0.00011519,2]
[419794893,1775383844380,-743.50770149,0.00011519,2]
[419794894,1775383844391,-200.0,0.00011519,2]
[419794895,1775383844400,-151.0,0.00011519,2]
[419794896,1775383844411,-279.9045709,0.00011519,2]
[419794897,1775383844421,-157.03985341,0.00011519,2]
[419794898,1775383844431,-170.0,0.00011519,2]
[419794899,1775383844440,-170.0,0.00011519,2]
[419794900,1775383844450,-170.0,0.00011519,2]
[419794901,1775383844461,-170.0,0.00011519,2]
[419794902,1775383844470,-500.0,0.00011519,2]
[419794903,1775383844480,-170.0,0.00011519,2]
[419794904,1775383844489,-500.0,0.00011519,2]
[419794905,1775383844499,-170.0,0.00011519,2]
[419794906,1775383844508,-500.0,0.00011519,2]
[419794907,1775383844518,-170.0,0.00011519,2]
[419794908,1775383844528,-500.0,0.00011519,2]
[419794909,1775383844537,-170.0,0.00011519,2]
[419794910,1775383844547,-500.0,0.00011519,2]
[419794911,1775383844557,-170.0,0.00011519,2]
[419794912,1775383844567,-170.0,0.00011519,2]
[419794913,1775383844577,-170.0,0.00011519,2]
[419794914,1775383844587,-2000.0,0.00011522,2]
[419794915,1775383844597,-500.0,0.00011574,2]
[419794916,1775383844607,-151.0,0.00011574,2]
[419794917,1775383844616,-500.0,0.00011629,2]
[419794918,1775383844626,-151.0,0.00011629,2]
[419794919,1775383844636,-200.0,0.00011644,2]
[419794920,1775383844646,-1546.48273779,0.00011644,2]
[419794921,1775383844656,-2000.0,0.00011664,2]
[419794922,1775383844665,-2000.0,0.00011664,2]
[419794923,1775383844675,-2000.0,0.00011664,2]
[419794924,1775383844687,-2000.0,0.00011664,2]
[419794925,1775383844696,-2000.0,0.00011664,2]
[419794926,1775383844707,-2000.0,0.00011664,2]
[419794927,1775383844717,-2000.0,0.00011664,2]
[419794928,1775383844728,-2000.0,0.00011664,2]
[419794929,1775383844738,-2000.0,0.00011664,2]
[419794930,1775383844749,-2000.0,0.00011664,2]
[419794931,1775383844759,-2000.0,0.00011664,2]
[419794932,1775383844768,-2000.0,0.00011664,2]
[419794933,1775383844778,-2000.0,0.00011664,2]
[419794934,1775383845080,-2000.0,0.00011664,2]
[419794935,1775383845090,-2000.0,0.00011664,2]
[419794936,1775383845101,-2000.0,0.00011664,2]
[419794937,1775383845112,-2000.0,0.00011664,2]
[419794938,1775383845121,-2000.0,0.00011664,2]
[419794939,1775383845131,-2000.0,0.00011664,2]
[419794940,1775383845140,-2000.0,0.00011664,2]
[419794941,1775383845150,-67822.78354354,0.00011675,2]
[419794942,1775383845159,-2000.0,0.00011676,2]
[419794943,1775383845169,-2000.0,0.00011676,2]
[419794944,1775383845178,-2000.0,0.00011676,2]
[419794945,1775383845188,-2000.0,0.00011676,2]
[419794946,1775383845197,-2000.0,0.00011676,2]
[419794947,1775383845207,-2000.0,0.00011676,2]
[419794948,1775383845216,-2000.0,0.00011676,2]
[419794949,1775383845226,-2000.0,0.00011676,2]
[419794950,1775383845235,-2000.0,0.00011676,2]
[419794951,1775383845244,-2000.0,0.00011676,2]
[419794952,1775383845254,-2000.0,0.00011676,2]
[419794953,1775383845263,-2000.0,0.00011676,2]
[419794954,1775383845273,-2000.0,0.00011676,2]
[419794955,1775383845283,-2000.0,0.00011676,2]
[419794956,1775383845292,-500.0,0.00011684,2]
[419794957,1775383845302,-151.0,0.00011684,2]
[419794958,1775383845311,-59898.17119049,0.00011687,2]
[419794959,1775383845320,-9909.78873263,0.00011693,2]
[419794960,1775383845330,-2000.0,0.000117,2]
[419794961,1775383845339,-2000.0,0.000117,2]
[419794962,1775383845348,-2000.0,0.000117,2]
[419794963,1775383845357,-2000.0,0.000117,2]
[419794964,1775383845366,-2000.0,0.000117,2]
[419794965,1775383845375,-2000.0,0.000117,2]
[419794966,1775383845385,-2000.0,0.000117,2]
[419794967,1775383845394,-2000.0,0.000117,2]
[419794968,1775383845404,-2000.0,0.000117,2]
[419794969,1775383845414,-500.0,0.00011739,2]
[419794970,1775383845423,-151.0,0.00011739,2]
[419794971,1775383845434,-500.0,0.00011794,2]
[419794972,1775383845443,-151.0,0.00011794,2]
[419794973,1775383845452,-500.0,0.00011849,2]
[419794974,1775383845461,-151.0,0.00011849,2]
[419794975,1775383845471,-309.28131584,0.0001185,2]
[419794976,1775383845480,-500.0,0.00011904,2]
[419794977,1775383845490,-151.0,0.00011904,2]
[419794978,1775383845499,-470.08,0.00011941,2]
[419794979,1775383845508,-500.0,0.00011959,2]
[419794980,1775383845518,-151.0,0.00011959,2]
[419794981,1775383845527,-500.0,0.00012014,2]
[419794982,1775383845536,-151.0,0.00012014,2]
[419794983,1775383845545,-1079.0,0.00012036,2]
[419794984,1775383845554,-1481.23780761,0.00012067,2]
[419794985,1775383845563,-339.62894544,0.00012067,2]
[419794986,1775383845572,-217.15233878,0.00012067,2]
[419794987,1775383845582,-181.08010149,0.00012067,2]
[419794988,1775383845591,-719.04747942,0.00012067,2]
[419794989,1775383845600,-771.01748645,0.00012067,2]
[419794990,1775383845610,-200.0,0.00012067,2]
[419794991,1775383845619,-290.26104003,0.00012067,2]
[419794992,1775383845628,-500.0,0.00012069,2]
[419794993,1775383845638,-151.0,0.00012069,2]
[419794994,1775383845647,-600.0,0.00012085,2]
[419794995,1775383845656,-516.36,0.00012085,2]
[419794996,1775383845667,-1486.16375652,0.00012177,2]
[419794997,1775383845677,-200.0,0.00012192,2]
[419794998,1775383845687,-1603.70259909,0.00012192,2]
[419794999,1775383845697,-341.60879357,0.00012257,2]
[419795000,1775383845707,-3564.18757748,0.00012257,2]
[419795001,1775383845717,-67822.78354354,0.00012293,2]
[419795002,1775383845728,-59898.17119049,0.00012302,2]
[419795003,1775383845738,-186.62,0.00012302,2]
[419795004,1775383845748,-470.08,0.0001246,2]
[419795005,1775383845760,-500.0,0.00012466,2]
[419795006,1775383845770,-309.90283068,0.000125,2]
[419795007,1775383845780,-4609.0,0.00012573,2]
[419795008,1775383845790,-1252.0,0.00012584,2]
[419795009,1775383845799,-10000.0,0.00012588,2]
[419795010,1775383845809,-1536.04360649,0.00012615,2]
[419795011,1775383845818,-225.18697532,0.00012615,2]
[419795012,1775383845827,-187.78006525,0.00012615,2]
[419795013,1775383845836,-745.65223616,0.00012615,2]
[419795014,1775383845846,-799.54513345,0.00012615,2]
[419795015,1775383845855,-200.0,0.00012615,2]
[419795016,1775383845865,-301.00069851,0.00012615,2]
[419795017,1775383845874,-9909.78873263,0.00012719,2]
[419795018,1775383845885,-151.0,0.00012739,2]
[419795019,1775383845895,-200.0,0.0001274,2]
[419795020,1775383845904,-1663.03959526,0.0001274,2]
[419795021,1775383845914,-2000.0,0.00012803,2]
[419795022,1775383845923,-185.26,0.00012835,2]
[419795023,1775383845932,-571.42,0.00012847,2]
[419795024,1775383845941,-163.99,0.00012887,2]
[419795025,1775383845951,-500.0,0.00012904,2]
[419795026,1775383845960,-67822.78354354,0.00012911,2]
[419795027,1775383845969,-59898.17119049,0.00012917,2]
[419795028,1775383845979,-1000.0,0.00012945,2]
[419795029,1775383845989,-879.65842586,0.00012965,2]
[419795030,1775383845999,-1000.0,0.00012965,2]
[419795031,1775383846010,-185.26,0.00012965,17]
[419795032,1775383846020,-470.08,0.00012979,2]
[419795033,1775383846030,-84914.69579609,0.00012999,2]
[419795034,1775383846039,-5651.24226969,0.00013,2]
[419795035,1775383846050,-250.0,0.00013,2]
[419795036,1775383846060,-1811.5322899,0.00013,15]
[419795037,1775383846070,-160.0,0.00013,2]
[419795038,1775383846079,-5390.67222516,0.0001305,2]
[419795039,1775383846090,-508.0,0.00013111,2]
[419795040,1775383846099,-1592.87721993,0.00013163,2]
[419795041,1775383846108,-339.83981092,0.00013163,2]
[419795042,1775383846119,-194.72792766,0.00013163,2]
[419795043,1775383846131,-369.5568607,0.00013163,2]
[419795044,1775383846141,-829.12830338,0.00013163,2]
[419795045,1775383846150,-200.0,0.00013163,2]
[419795046,1775383846160,-600.0,0.00013268,2]
[419795047,1775383846169,-516.36,0.00013268,2]
[419795048,1775383846179,-500.0,0.00013288,2]
[419795049,1775383846189,-200.0,0.00013288,2]
[419795050,1775383846198,-1453.30363319,0.00013288,2]
[419795051,1775383846208,-317.44,0.00013351,2]
[419795052,1775383846218,-160.0,0.00013403,2]
[419795053,1775383846227,-209.13,0.00013424,2]
[419795054,1775383846236,-892.448042,0.00013429,2]
[419795055,1775383846245,-892.448042,0.00013429,2]
[419795056,1775383846254,-892.448042,0.00013429,2]
[419795057,1775383846263,-892.448042,0.00013429,2]
[419795058,1775383846272,-3694.0,0.00013429,2]
[419795059,1775383846281,-3694.0,0.00013429,2]
[419795060,1775383846291,-3694.0,0.00013429,2]
[419795061,1775383846300,-3694.0,0.00013429,2]
[419795062,1775383846309,-3694.0,0.00013429,2]
[419795063,1775383846318,-3694.0,0.00013429,2]
[419795064,1775383846327,-3694.0,0.00013429,2]
[419795065,1775383846337,-3694.0,0.00013429,2]
[419795066,1775383846346,-500.0,0.00013429,2]
[419795067,1775383846355,-3694.0,0.00013429,2]
[419795068,1775383846365,-500.0,0.00013429,2]
[419795069,1775383846374,-3694.0,0.00013429,2]
[419795070,1775383846384,-500.0,0.00013429,2]
[419795071,1775383846395,-500.0,0.00013429,2]
[419795072,1775383846406,-3694.0,0.00013429,2]
[419795073,1775383846416,-500.0,0.00013429,2]
[419795074,1775383846426,-500.0,0.00013429,2]
[419795075,1775383846438,-3694.0,0.00013429,2]
[419795076,1775383846448,-500.0,0.00013429,2]
[419795077,1775383846459,-500.0,0.00013429,2]
[419795078,1775383846468,-3694.0,0.00013429,2]
[419795079,1775383846480,-500.0,0.00013429,2]
[419795080,1775383846490,-2076.0,0.00013429,2]
[419795081,1775383846499,-3694.0,0.00013429,2]
[419795082,1775383846509,-2076.0,0.00013429,2]
[419795083,1775383846519,-500.0,0.00013429,2]
[419795084,1775383846529,-500.0,0.00013429,2]
[419795085,1775383846540,-2076.0,0.00013429,2]
[419795086,1775383846550,-500.0,0.00013429,2]
[419795087,1775383846560,-2076.0,0.00013429,2]
[419795088,1775383846569,-615.77009816,0.00013429,2]
[419795089,1775383846578,-3694.0,0.00013429,2]
[419795090,1775383846588,-2076.0,0.00013429,2]
[419795091,1775383846597,-2076.0,0.00013429,2]
[419795092,1775383846607,-2076.0,0.00013429,2]
[419795093,1775383846616,-2076.0,0.00013429,2]
[419795094,1775383846627,-2076.0,0.00013429,2]
[419795095,1775383846637,-3694.0,0.00013429,2]
[419795096,1775383846647,-2076.0,0.00013429,2]
[419795097,1775383846658,-2076.0,0.00013429,2]
[419795098,1775383846668,-2076.0,0.00013429,2]
[419795099,1775383846677,-2076.0,0.00013429,2]
[419795100,1775383846688,-2076.0,0.00013429,2]
[419795101,1775383846698,-2076.0,0.00013429,2]
[419795102,1775383846708,-3694.0,0.00013429,2]
[419795103,1775383846717,-2076.0,0.00013429,2]
[419795104,1775383846726,-3694.0,0.00013429,2]
[419795105,1775383846736,-2076.0,0.00013429,2]
[419795106,1775383846745,-3694.0,0.00013429,2]
[419795107,1775383846754,-2076.0,0.00013429,2]
[419795108,1775383846763,-3694.0,0.00013429,2]
[419795109,1775383846772,-2076.0,0.00013429,2]
[419795110,1775383846782,-3694.0,0.00013429,2]
[419795111,1775383846791,-2076.0,0.00013429,2]
[419795112,1775383846800,-2076.0,0.00013429,2]
[419795113,1775383846810,-3694.0,0.00013429,2]
[419795114,1775383846819,-2076.0,0.00013429,2]
[419795115,1775383846828,-3694.0,0.00013429,2]
[419795116,1775383846837,-2076.0,0.00013429,2]
[419795117,1775383846846,-3703.0,0.00013429,2]
[419795118,1775383846855,-2094.05786955,0.00013429,2]
[419795119,1775383846864,-152.51,0.00013453,2]
[419795120,1775383846874,-2203.0,0.00013461,5]
[419795121,1775383846883,-1152.33695723,0.0001347,3]
[419795122,1775383846892,-470.08,0.00013498,2]
[419795123,1775383846901,-1000.0,0.000135,2]
[419795124,1775383846911,-67822.78354354,0.00013529,2]
[419795125,1775383846920,-59898.17119049,0.00013532,2]
[419795126,1775383846930,-3000.0,0.00013534,2]
[419795127,1775383846941,-399.7182544,0.00013542,2]
[419795128,1775383846951,-500.0,0.00013698,2]
[419795129,1775383846962,-500.0,0.00013698,2]
[419795130,1775383846972,-500.0,0.00013698,2]
[419795131,1775383846983,-500.0,0.00013698,2]
[419795133,1775383846992,-500.0,0.00013698,2]
[419795134,1775383847002,-500.0,0.00013698,2]
[419795135,1775383847011,-500.0,0.00013698,2]
[419795136,1775383847020,-500.0,0.00013698,2]
[419795137,1775383847030,-500.0,0.00013698,2]
[419795138,1775383847040,-500.0,0.00013698,2]
[419795139,1775383847052,-500.0,0.00013698,2]
[419795140,1775383847062,-500.0,0.00013698,2]
[419795141,1775383847072,-500.0,0.00013698,2]
[419795142,1775383847081,-500.0,0.00013698,2]
[419795143,1775383847090,-500.0,0.00013698,2]
[419795144,1775383847099,-500.0,0.00013698,2]
[419795145,1775383847109,-597.52469685,0.00013698,2]
[419795146,1775383847118,-500.0,0.00013698,2]
[419795147,1775383847129,-500.0,0.00013698,2]
[419795148,1775383847138,-500.0,0.00013698,2]
[419795149,1775383847147,-500.0,0.00013698,2]
[419795150,1775383847156,-500.0,0.00013698,2]
[419795151,1775383847166,-500.0,0.00013698,2]
[419795152,1775383847175,-500.0,0.00013698,2]
[419795153,1775383847184,-500.0,0.00013698,2]
[419795154,1775383847194,-500.0,0.00013698,2]
[419795155,1775383847203,-500.0,0.00013698,2]
[419795157,1775383847213,-529.30513851,0.00013698,2]
[419795159,1775383847222,-500.0,0.00013698,2]
[419795160,1775383847231,-500.0,0.00013698,2]
[419795161,1775383847241,-500.0,0.00013698,2]
[419795162,1775383847251,-500.0,0.00013698,2]
[419795163,1775383847261,-500.0,0.00013698,2]
[419795164,1775383847271,-500.0,0.00013698,2]
[419795165,1775383847280,-500.0,0.00013698,2]
[419795166,1775383847290,-500.0,0.00013698,2]
[419795167,1775383847299,-500.0,0.00013698,2]
[419795168,1775383847309,-500.0,0.00013698,2]
[419795169,1775383847318,-500.0,0.00013698,2]
[419795170,1775383847327,-500.0,0.00013698,2]
[419795171,1775383847336,-500.0,0.00013698,2]
[419795172,1775383847346,-500.0,0.00013698,2]
[419795173,1775383847355,-500.0,0.00013698,2]
[419795174,1775383847364,-500.0,0.00013698,2]
[419795175,1775383847374,-500.0,0.00013698,2]
[419795176,1775383847383,-339.62799859,0.00013698,2]
[419795177,1775383847393,-500.0,0.00013698,2]
[419795178,1775383847402,-500.0,0.00013698,2]
[419795179,1775383847412,-500.0,0.00013698,2]
[419795180,1775383847421,-500.0,0.00013698,2]
[419795181,1775383847431,-500.0,0.00013698,2]
[419795182,1775383847440,-500.0,0.00013698,2]
[419795183,1775383847450,-500.0,0.00013698,2]
[419795184,1775383847460,-500.0,0.00013698,2]
[419795185,1775383847470,-500.0,0.00013698,2]
[419795186,1775383847480,-500.0,0.00013698,2]
[419795187,1775383847490,-500.0,0.00013698,2]
[419795188,1775383847499,-500.0,0.00013698,2]
[419795189,1775383847509,-500.0,0.00013698,2]
[419795190,1775383847518,-500.0,0.00013698,2]
[419795191,1775383847528,-500.0,0.00013698,2]
[419795192,1775383847541,-500.0,0.00013698,2]
[419795193,1775383847551,-500.0,0.00013698,2]
[419795194,1775383847561,-500.0,0.00013698,2]
[419795195,1775383847570,-500.0,0.00013698,2]
[419795196,1775383847579,-500.0,0.00013698,2]
[419795197,1775383847589,-500.0,0.00013698,2]
[419795198,1775383847599,-500.0,0.00013698,2]
[419795199,1775383847608,-500.0,0.00013698,2]
[419795200,1775383847617,-500.0,0.00013698,2]
[419795201,1775383847626,-500.0,0.00013698,2]
[419795202,1775383847635,-500.0,0.00013698,2]
[419795203,1775383847644,-500.0,0.00013698,2]
[419795204,1775383847652,-564.47521126,0.00013698,2]
[419795205,1775383847661,-500.0,0.00013698,2]
[419795206,1775383847670,-504.35317897,0.00013698,2]
[419795207,1775383847679,-952.5,0.00013698,2]
[419795208,1775383847688,-952.5,0.00013698,2]
[419795209,1775383847698,-952.5,0.00013698,2]
[419795210,1775383847707,-952.5,0.00013698,2]
[419795211,1775383847718,-952.5,0.00013698,2]
[419795212,1775383847727,-952.5,0.00013698,2]
[419795213,1775383847738,-952.5,0.00013698,2]
[419795214,1775383847748,-952.5,0.00013698,2]
[419795215,1775383847757,-952.5,0.00013698,2]
[419795216,1775383847766,-952.5,0.00013698,2]
[419795217,1775383847775,-952.5,0.00013698,2]
[419795218,1775383847784,-952.5,0.00013698,2]
[419795219,1775383847795,-952.5,0.00013698,2]
[419795220,1775383847804,-952.5,0.00013698,2]
[419795221,1775383847813,-952.5,0.00013698,2]
[419795222,1775383847822,-1289.11,0.00013698,2]
[419795223,1775383847831,-1289.11,0.00013698,2]
[419795224,1775383847842,-1289.11,0.00013698,2]
[419795225,1775383847853,-1289.11,0.00013698,2]
[419795226,1775383847863,-1289.11,0.00013698,2]
[419795227,1775383847872,-1289.11,0.00013698,2]